fUSD/lending_fUSD_20260530
["ID","MTS","AMOUNT","RATE_DAILY","PERIOD"]
[423475100,1780155156000,-200.0,0.0002336,2]
[423475099,1780155156000,-1842.0326633,0.00023336,2]
[423475102,1780155156000,-433.34,0.000234,2]
[423475098,1780155156000,-2682.57183977,0.00023336,2]
[423475097,1780155156000,-500.0,0.00023288,7]
[423475103,1780155156000,-936.96,0.000234,2]
[423475078,1780155156000,-5000.0,0.00023022,2]
[423475096,1780155156000,-160.51,0.00023288,4]
[423475088,1780155156000,-163.0,0.00023064,3]
[423475079,1780155156000,-5000.0,0.00023022,2]
[423475062,1780155156000,-2586.85809042,0.00022788,2]
[423475074,1780155156000,-1226.0,0.00023011,2]
[423475095,1780155156000,-1471.0,0.00023285,2]
[423475055,1780155156000,-5000.0,0.00022522,2]
[423475054,1780155156000,-5000.0,0.00022522,2]
[423475057,1780155156000,-5000.0,0.00022522,2]
[423475061,1780155156000,-192.329238,0.00022724,2]
[423475067,1780155156000,-240.411548,0.00022963,2]
[423475056,1780155156000,-5000.0,0.00022522,2]
[423475058,1780155156000,-200.0,0.00022572,2]
[423475063,1780155156000,-1776.30922209,0.00022788,2]
[423475068,1780155156000,-2004.40376524,0.00022999,20]
[423475076,1780155156000,-1986.95529449,0.00023022,2]
[423475059,1780155156000,-476.83,0.00022661,2]
[423475066,1780155156000,-500.0,0.00022946,7]
[423475065,1780155156000,-223.93,0.00022932,2]
[423475069,1780155156000,-153.863391,0.00023,2]
[423475073,1780155156000,-1272.0,0.00023011,2]
[423475072,1780155156000,-525.0,0.00023011,2]
[423475070,1780155156000,-1000.0,0.00023,23]
[423475080,1780155156000,-5000.0,0.00023022,2]
[423475071,1780155156000,-1047.61960593,0.00023,2]
[423475075,1780155156000,-1356.0,0.00023011,2]
[423475077,1780155156000,-5000.0,0.00023022,2]
[423475064,1780155156000,-213147.0,0.000229,2]
[423475101,1780155156000,-2166.65,0.000234,2]
[423475060,1780155156000,-152.0,0.00022707,8]
[423475104,1780155156000,-228.74,0.000234,2]
[423475131,1780155156000,-152.0,0.00024338,11]
[423475134,1780155156000,-500.0,0.00024518,2]
[423475144,1780155156000,-420.360414,0.00024658,2]
[423475135,1780155156000,-168.13,0.00024566,2]
[423475137,1780155156000,-420.360414,0.00024658,2]
[423475139,1780155156000,-420.360414,0.00024658,2]
[423475133,1780155156000,-1980.8648231,0.00024432,2]
[423475136,1780155156000,-216.33,0.00024658,6]
[423475138,1780155156000,-420.360414,0.00024658,2]
[423475142,1780155156000,-420.360414,0.00024658,2]
[423475132,1780155156000,-2884.75459676,0.00024432,2]
[423475141,1780155156000,-420.360414,0.00024658,2]
[423475140,1780155156000,-420.360414,0.00024658,2]
[423475146,1780155156000,-420.360414,0.00024658,2]
[423475145,1780155156000,-420.360414,0.00024658,2]
[423475148,1780155156000,-420.360414,0.00024658,2]
[423475147,1780155156000,-420.360414,0.00024658,2]
[423475151,1780155156000,-420.360414,0.00024658,2]
[423475149,1780155156000,-420.360414,0.00024658,2]
[423475150,1780155156000,-420.360414,0.00024658,2]
[423475153,1780155156000,-420.360414,0.00024658,2]
[423475105,1780155156000,-5531.0,0.000234,3]
[423475143,1780155156000,-420.360414,0.00024658,2]
[423475124,1780155156000,-265.68,0.0002411,2]
[423475152,1780155156000,-420.360414,0.00024658,2]
[423475127,1780155156000,-200.0,0.00024148,2]
[423475106,1780155156000,-1970.92,0.00023521,2]
[423475120,1780155156000,-8311.4,0.00024,2]
[423475108,1780155156000,-2900.0,0.00023768,7]
[423475118,1780155156000,-12300.7,0.00024,2]
[423475107,1780155156000,-800.0,0.00023768,7]
[423475109,1780155156000,-152.0,0.00023795,10]
[423475116,1780155156000,-11610.85,0.00024,2]
[423475114,1780155156000,-3351.71,0.00024,2]
[423475112,1780155156000,-1910.18787185,0.00023884,2]
[423475110,1780155156000,-500.0,0.00023804,2]
[423475115,1780155156000,-162.0,0.00024,10]
[423475111,1780155156000,-2781.82699784,0.00023884,2]
[423475113,1780155156000,-7805.96,0.00024,2]
[423475129,1780155156000,-2000.0,0.000242,7]
[423475122,1780155156000,-500.0,0.00024,2]
[423475128,1780155156000,-250.7700256,0.00024178,4]
[423475125,1780155156000,-984.92,0.0002411,2]
[423475123,1780155156000,-5531.0,0.00024,5]
[423475119,1780155156000,-1758.89,0.00024,2]
[423475121,1780155156000,-791.42,0.00024,7]
[423475126,1780155156000,-1590.0,0.00024144,3]
[423475117,1780155156000,-1264.4,0.00024,2]
[423475130,1780155156000,-2671.5,0.00024324,2]
[423475193,1780155157000,-1970.92,0.00025282,7]
[423475200,1780155157000,-200.0,0.00025724,2]
[423475201,1780155157000,-381.41524729,0.00025743,7]
[423475184,1780155157000,-409.22,0.00025,2]
[423475189,1780155157000,-409.22,0.00025,2]
[423475194,1780155157000,-152.0,0.00025426,13]
[423475186,1780155157000,-409.22,0.00025,2]
[423475185,1780155157000,-409.22,0.00025,2]
[423475192,1780155157000,-500.0,0.00025254,2]
[423475187,1780155157000,-409.22,0.00025,2]
[423475202,1780155157000,-270.01,0.00025769,2]
[423475191,1780155157000,-500.0,0.00025138,7]
[423475197,1780155157000,-302.259,0.00025618,2]
[423475212,1780155157000,-1272.0,0.00026011,2]
[423475196,1780155157000,-410.5065,0.00025618,2]
[423475199,1780155157000,-1004.07,0.00025658,2]
[423475204,1780155157000,-800.0,0.0002596,7]
[423475198,1780155157000,-1229.0,0.00025637,2]
[423475207,1780155157000,-40504.3072676,0.00026,2]
[423475203,1780155157000,-1069.7,0.00025786,2]
[423475206,1780155157000,-152.0,0.0002597,14]
[423475210,1780155157000,-500.0,0.00026,2]
[423475209,1780155157000,-550.0,0.00026,2]
[423475218,1780155157000,-355.0,0.0002609,7]
[423475213,1780155157000,-1226.0,0.00026011,2]
[423475208,1780155157000,-300.0,0.00026,2]
[423475190,1780155157000,-1229.0,0.00025082,2]
[423475205,1780155157000,-2900.0,0.0002596,7]
[423475195,1780155157000,-791.42,0.000255,7]
[423475158,1780155157000,-812.48,0.00024658,2]
[423475180,1780155157000,-570.74,0.00025,2]
[423475157,1780155157000,-1000.0,0.00024658,2]
[423475156,1780155157000,-420.360408,0.00024658,2]
[423475155,1780155157000,-420.360414,0.00024658,2]
[423475154,1780155157000,-420.360414,0.00024658,2]
[423475159,1780155157000,-500.0,0.00024658,7]
[423475161,1780155157000,-1576.21,0.00024658,2]
[423475211,1780155157000,-525.0,0.00026011,2]
[423475170,1780155157000,-2054.15682156,0.0002498,2]
[423475169,1780155157000,-400.0,0.0002497,2]
[423475160,1780155157000,-1575.96,0.00024658,2]
[423475162,1780155157000,-381.41,0.0002475,7]
[423475164,1780155157000,-152.0,0.00024882,12]
[423475165,1780155157000,-304.04,0.00024899,2]
[423475167,1780155157000,-3313.0,0.000249,9]
[423475166,1780155157000,-793.42,0.00024899,7]
[423475168,1780155157000,-200.0,0.00024936,2]
[423475163,1780155157000,-901.76,0.000248,14]
[423475171,1780155157000,-2991.49051684,0.0002498,2]
[423475172,1780155157000,-248565.73877617,0.00025,2]
[423475176,1780155157000,-4630.12920348,0.00025,2]
[423475174,1780155157000,-105765.04826757,0.00025,2]
[423475183,1780155157000,-409.22,0.00025,2]
[423475182,1780155157000,-409.22,0.00025,2]
[423475179,1780155157000,-5411.88870007,0.00025,2]
[423475177,1780155157000,-1354.28221719,0.00025,4]
[423475173,1780155157000,-300.0,0.00025,2]
[423475178,1780155157000,-1000.0,0.00025,25]
[423475181,1780155157000,-409.22,0.00025,2]
[423475175,1780155157000,-139686.88397371,0.00025,2]
[423475188,1780155157000,-409.22,0.00025,2]
[423475219,1780155157000,-2457.0,0.000261,2]
[423475244,1780155157000,-1000.0,0.00027,27]
[423475214,1780155157000,-1356.0,0.00026011,2]
[423475254,1780155157000,-200.0,0.000273,2]
[423475250,1780155157000,-1068.99,0.0002724,7]
[423475249,1780155157000,-6950.64531336,0.00027111,2]
[423475216,1780155157000,-305.3,0.00026027,7]
[423475256,1780155157000,-500.0,0.0002733,7]
[423475257,1780155157000,-1000.0,0.00027359,2]
[423475255,1780155157000,-1229.0,0.00027301,4]
[423475259,1780155157000,-351.21792606,0.00027397,30]
[423475253,1780155157000,-1000.0,0.00027282,2]
[423475261,1780155157000,-211.79110286,0.00027397,7]
[423475268,1780155157000,-1000.0,0.00027397,2]
[423475263,1780155157000,-202.9100121,0.00027397,7]
[423475260,1780155157000,-232.1397647,0.00027397,7]
[423475247,1780155157000,-152.0,0.00027057,16]
[423475272,1780155157000,-1143.0,0.00027397,2]
[423475269,1780155157000,-1000.0,0.00027397,2]
[423475271,1780155157000,-827.91596908,0.00027397,2]
[423475264,1780155157000,-609.93139549,0.00027397,2]
[423475270,1780155157000,-1000.0,0.00027397,2]
[423475265,1780155157000,-1000.0,0.00027397,2]
[423475266,1780155157000,-1000.0,0.00027397,2]
[423475267,1780155157000,-1000.0,0.00027397,2]
[423475274,1780155157000,-1143.0,0.00027397,2]
[423475273,1780155157000,-1143.0,0.00027397,2]
[423475278,1780155157000,-1143.0,0.00027397,2]
[423475275,1780155157000,-1143.0,0.00027397,2]
[423475277,1780155157000,-1143.0,0.00027397,2]
[423475276,1780155157000,-1143.0,0.00027397,2]
[423475262,1780155157000,-233.5350695,0.00027397,7]
[423475251,1780155157000,-511.25,0.00027252,7]
[423475252,1780155157000,-1000.0,0.00027257,2]
[423475246,1780155157000,-1970.92,0.00027043,7]
[423475215,1780155157000,-500.0,0.00026012,2]
[423475217,1780155157000,-500.0,0.00026028,7]
[423475221,1780155157000,-201.0,0.000261,2]
[423475220,1780155157000,-615.35636073,0.000261,2]
[423475231,1780155157000,-152.0,0.00026513,15]
[423475224,1780155157000,-2671.5,0.00026296,2]
[423475222,1780155157000,-1229.0,0.00026192,3]
[423475223,1780155157000,-257.02,0.000262,2]
[423475258,1780155157000,-351.21992606,0.00027397,2]
[423475226,1780155157000,-6915.2497483,0.00026461,2]
[423475232,1780155157000,-447.39128337,0.00026607,2]
[423475228,1780155157000,-2931.8538386,0.00026461,2]
[423475225,1780155157000,-1102.05,0.00026446,7]
[423475230,1780155157000,-200.0,0.00026512,2]
[423475227,1780155157000,-201916.4161754,0.00026461,2]
[423475234,1780155157000,-3228.0,0.000267,7]
[423475229,1780155157000,-33666.1216612,0.00026461,2]
[423475237,1780155157000,-348.00313233,0.00026849,2]
[423475241,1780155157000,-2000.0,0.00027,14]
[423475240,1780155157000,-521.46,0.00026951,7]
[423475235,1780155157000,-1229.0,0.00026746,3]
[423475243,1780155157000,-300.0,0.00027,2]
[423475248,1780155157000,-471.62500617,0.00027093,2]
[423475238,1780155157000,-384.17502902,0.00026849,2]
[423475236,1780155157000,-500.0,0.00026792,2]
[423475239,1780155157000,-1000.0,0.0002689,2]
[423475245,1780155157000,-791.42,0.00027,7]
[423475233,1780155157000,-5665.91,0.00026666,20]
[423475242,1780155157000,-960.36867786,0.00027,5]
[423475286,1780155158000,-1143.0,0.00027397,2]
[423475295,1780155158000,-1162.36562493,0.00027397,2]
[423475296,1780155158000,-1500.0,0.00027397,2]
[423475285,1780155158000,-1143.0,0.00027397,2]
[423475281,1780155158000,-1143.0,0.00027397,2]
[423475279,1780155158000,-1143.0,0.00027397,2]
[423475283,1780155158000,-1143.0,0.00027397,2]
[423475282,1780155158000,-1143.0,0.00027397,2]
[423475284,1780155158000,-1143.0,0.00027397,2]
[423475280,1780155158000,-1143.0,0.00027397,2]
[423475288,1780155158000,-1143.0,0.00027397,2]
[423475304,1780155158000,-151.0,0.00027397,2]
[423475292,1780155158000,-1143.0,0.00027397,2]
[423475290,1780155158000,-1143.0,0.00027397,2]
[423475301,1780155158000,-151.0,0.00027397,2]
[423475298,1780155158000,-270.72301952,0.00027397,7]
[423475300,1780155158000,-151.0,0.00027397,2]
[423475299,1780155158000,-500.91,0.00027397,2]
[423475303,1780155158000,-151.0,0.00027397,2]
[423475294,1780155158000,-1143.0,0.00027397,2]
[423475291,1780155158000,-1143.0,0.00027397,2]
[423475293,1780155158000,-1143.0,0.00027397,2]
[423475289,1780155158000,-1143.0,0.00027397,2]
[423475287,1780155158000,-1143.0,0.00027397,2]
[423475425,1780155159000,-500.0,0.000274,2]
[423475420,1780155159000,-500.0,0.000274,2]
[423475418,1780155159000,-500.0,0.000274,2]
[423475421,1780155159000,-500.0,0.000274,2]
[423475422,1780155159000,-500.0,0.000274,2]
[423475435,1780155159000,-500.0,0.000274,2]
[423475424,1780155159000,-500.0,0.000274,2]
[423475433,1780155159000,-500.0,0.000274,2]
[423475426,1780155159000,-500.0,0.000274,2]
[423475427,1780155159000,-500.0,0.000274,2]
[423475430,1780155159000,-500.0,0.000274,2]
[423475432,1780155159000,-500.0,0.000274,2]
[423475417,1780155159000,-500.0,0.000274,2]
[423475434,1780155159000,-500.0,0.000274,2]
[423475429,1780155159000,-500.0,0.000274,2]
[423475428,1780155159000,-500.0,0.000274,2]
[423475419,1780155159000,-500.0,0.000274,2]
[423475400,1780155159000,-577.438601,0.00027397,2]
[423475416,1780155159000,-500.0,0.000274,2]
[423475399,1780155159000,-577.438601,0.00027397,2]
[423475405,1780155159000,-577.438601,0.00027397,2]
[423475404,1780155159000,-577.438601,0.00027397,2]
[423475411,1780155159000,-577.438601,0.00027397,2]
[423475407,1780155159000,-577.438601,0.00027397,2]
[423475403,1780155159000,-577.438601,0.00027397,2]
[423475408,1780155159000,-577.438601,0.00027397,2]
[423475415,1780155159000,-500.0,0.000274,2]
[423475406,1780155159000,-577.438601,0.00027397,2]
[423475402,1780155159000,-577.438601,0.00027397,2]
[423475410,1780155159000,-577.438601,0.00027397,2]
[423475409,1780155159000,-577.438601,0.00027397,2]
[423475431,1780155159000,-500.0,0.000274,2]
[423475423,1780155159000,-500.0,0.000274,2]
[423475412,1780155159000,-577.438601,0.00027397,2]
[423475414,1780155159000,-487.32526755,0.00027397,7]
[423475401,1780155159000,-577.438601,0.00027397,2]
[423475436,1780155159000,-912.33,0.000274,2]
[423475413,1780155159000,-577.438598,0.00027397,2]
[423475439,1780155159000,-1000.0,0.00027422,7]
[423475462,1780155159000,-1004.75144122,0.00027519,5]
[423475466,1780155159000,-1023.76318884,0.00027519,5]
[423475468,1780155159000,-1081.45428183,0.00027519,5]
[423475464,1780155159000,-1030.05178241,0.00027519,5]
[423475469,1780155159000,-1121.93651371,0.00027519,5]
[423475461,1780155159000,-1102.23405625,0.00027519,5]
[423475460,1780155159000,-1034.14882688,0.00027519,5]
[423475459,1780155159000,-1146.2206061,0.00027519,5]
[423475463,1780155159000,-1034.24622963,0.00027519,5]
[423475465,1780155159000,-1060.09652271,0.00027519,5]
[423475472,1780155159000,-1018.40574905,0.00027519,5]
[423475473,1780155159000,-1630.21534839,0.00027519,5]
[423475471,1780155159000,-1118.11012728,0.00027519,5]
[423475475,1780155159000,-1148.93,0.0002752,7]
[423475437,1780155159000,-2871.22,0.000274,7]
[423475474,1780155159000,-1171.52,0.0002752,7]
[423475467,1780155159000,-1106.95137744,0.00027519,5]
[423475453,1780155159000,-1085.37405537,0.00027519,5]
[423475470,1780155159000,-1096.14107391,0.00027519,5]
[423475454,1780155159000,-1025.50645058,0.00027519,5]
[423475440,1780155159000,-1000.0,0.0002743,7]
[423475457,1780155159000,-1007.2414269,0.00027519,5]
[423475441,1780155159000,-4348.68784362,0.00027452,14]
[423475444,1780155159000,-1000.0,0.000275,2]
[423475438,1780155159000,-1450.91,0.000274,7]
[423475446,1780155159000,-990.36,0.00027518,7]
[423475443,1780155159000,-525.86,0.00027474,7]
[423475445,1780155159000,-3228.0,0.000275,7]
[423475448,1780155159000,-528.76,0.00027518,7]
[423475442,1780155159000,-11315.0,0.00027463,7]
[423475458,1780155159000,-1026.90710941,0.00027519,5]
[423475449,1780155159000,-1029.21687233,0.00027519,5]
[423475452,1780155159000,-1113.15529764,0.00027519,5]
[423475450,1780155159000,-1044.95971784,0.00027519,5]
[423475451,1780155159000,-1130.29777504,0.00027519,5]
[423475456,1780155159000,-1050.03190997,0.00027519,5]
[423475447,1780155159000,-1228.27,0.00027518,7]
[423475455,1780155159000,-1140.02310719,0.00027519,5]
[423475520,1780155160000,-3016.87,0.00027711,7]
[423475515,1780155160000,-150.0,0.00027702,2]
[423475512,1780155160000,-170.25,0.00027671,14]
[423475516,1780155160000,-1050.64,0.00027702,30]
[423475514,1780155160000,-1050.81,0.00027672,7]
[423475518,1780155160000,-3016.86,0.00027711,7]
[423475511,1780155160000,-170.24,0.00027671,14]
[423475513,1780155160000,-1050.64,0.00027672,7]
[423475517,1780155160000,-1050.81,0.00027702,30]
[423475508,1780155160000,-2441.74,0.0002766,7]
[423475509,1780155160000,-2408.73,0.0002766,7]
[423475510,1780155160000,-170.24,0.00027671,14]
[423475530,1780155160000,-1000.0,0.000278,7]
[423475527,1780155160000,-1050.81,0.00027794,30]
[423475525,1780155160000,-1050.81,0.00027763,7]
[423475523,1780155160000,-1050.81,0.00027733,2]
[423475524,1780155160000,-1050.64,0.00027763,7]
[423475521,1780155160000,-2140.17,0.00027711,7]
[423475529,1780155160000,-159.81,0.000278,2]
[423475526,1780155160000,-1050.64,0.00027794,30]
[423475522,1780155160000,-1050.64,0.00027733,2]
[423475528,1780155160000,-793.42,0.00027798,7]
[423475535,1780155160000,-1050.64,0.00027855,7]
[423475538,1780155160000,-3016.86,0.00027872,2]
[423475506,1780155160000,-1050.64,0.00027641,2]
[423475531,1780155160000,-2441.74,0.00027816,2]
[423475519,1780155160000,-2140.64,0.00027711,7]
[423475507,1780155160000,-1050.81,0.00027641,2]
[423475486,1780155160000,-2441.74,0.0002755,2]
[423475504,1780155160000,-241.44603907,0.00027616,30]
[423475537,1780155160000,-1229.0,0.00027856,4]
[423475476,1780155160000,-1208.56,0.0002752,7]
[423475478,1780155160000,-150.0,0.00027521,2]
[423475482,1780155160000,-2441.74,0.0002755,2]
[423475479,1780155160000,-1000.0,0.00027542,7]
[423475481,1780155160000,-2441.74,0.0002755,7]
[423475477,1780155160000,-901.03,0.0002752,7]
[423475480,1780155160000,-1050.64,0.0002755,2]
[423475484,1780155160000,-2441.74,0.0002755,2]
[423475483,1780155160000,-2441.74,0.0002755,7]
[423475485,1780155160000,-2441.74,0.0002755,7]
[423475493,1780155160000,-2408.73,0.0002755,7]
[423475489,1780155160000,-1050.81,0.0002755,2]
[423475503,1780155160000,-1050.81,0.00027611,30]
[423475487,1780155160000,-3016.86,0.0002755,30]
[423475488,1780155160000,-2140.64,0.0002755,30]
[423475491,1780155160000,-3016.87,0.0002755,30]
[423475494,1780155160000,-2408.73,0.0002755,2]
[423475492,1780155160000,-2408.73,0.0002755,2]
[423475496,1780155160000,-2408.73,0.0002755,2]
[423475495,1780155160000,-2408.73,0.0002755,7]
[423475497,1780155160000,-2140.17,0.0002755,30]
[423475499,1780155160000,-1050.81,0.0002758,7]
[423475498,1780155160000,-1050.64,0.0002758,7]
[423475500,1780155160000,-500.0,0.00027596,14]
[423475501,1780155160000,-152.0,0.00027601,17]
[423475502,1780155160000,-1050.64,0.00027611,30]
[423475505,1780155160000,-1000.0,0.00027627,7]
[423475490,1780155160000,-2408.73,0.0002755,7]
[423475534,1780155160000,-1050.81,0.00027824,2]
[423475543,1780155160000,-1050.81,0.00027885,30]
[423475539,1780155160000,-2140.64,0.00027872,2]
[423475572,1780155160000,-1050.81,0.00028007,2]
[423475574,1780155160000,-2140.64,0.00028033,30]
[423475573,1780155160000,-3016.86,0.00028033,30]
[423475570,1780155160000,-1000.0,0.00028003,7]
[423475571,1780155160000,-1050.64,0.00028007,2]
[423475579,1780155160000,-1000.0,0.0002806,7]
[423475577,1780155160000,-1050.64,0.00028038,7]
[423475575,1780155160000,-3016.87,0.00028033,30]
[423475576,1780155160000,-2140.17,0.00028033,30]
[423475578,1780155160000,-1050.81,0.00028038,7]
[423475581,1780155160000,-1050.81,0.00028068,30]
[423475580,1780155160000,-1050.64,0.00028068,30]
[423475588,1780155160000,-834.0,0.00028082,2]
[423475589,1780155160000,-150.0,0.00028082,2]
[423475585,1780155160000,-200.0,0.0002808,20]
[423475591,1780155160000,-302.46,0.00028082,2]
[423475592,1780155160000,-356.81726835,0.00028082,2]
[423475584,1780155160000,-200.0,0.0002808,2]
[423475586,1780155160000,-200.0,0.0002808,7]
[423475583,1780155160000,-200.0,0.0002808,2]
[423475587,1780155160000,-200.0,0.0002808,2]
[423475582,1780155160000,-200.0,0.0002808,2]
[423475593,1780155160000,-220.0,0.00028082,7]
[423475594,1780155160000,-1000.0,0.00028082,3]
[423475595,1780155160000,-1000.0,0.00028082,3]
[423475596,1780155160000,-400.26192528,0.00028082,3]
[423475533,1780155160000,-1050.64,0.00027824,2]
[423475569,1780155160000,-163.972244,0.00028,2]
[423475568,1780155160000,-300.0,0.00028,21]
[423475590,1780155160000,-213.0,0.00028082,2]
[423475566,1780155160000,-253.81002062,0.00028,20]
[423475567,1780155160000,-200.0,0.00028,7]
[423475541,1780155160000,-2140.17,0.00027872,2]
[423475540,1780155160000,-3016.87,0.00027872,2]
[423475542,1780155160000,-1050.64,0.00027885,30]
[423475536,1780155160000,-1050.81,0.00027855,7]
[423475547,1780155160000,-1050.64,0.00027946,7]
[423475554,1780155160000,-1000.0,0.00027997,7]
[423475548,1780155160000,-1050.81,0.00027946,7]
[423475545,1780155160000,-1050.64,0.00027916,2]
[423475549,1780155160000,-350.0,0.00027948,10]
[423475552,1780155160000,-1050.64,0.00027977,30]
[423475550,1780155160000,-2441.74,0.00027972,7]
[423475544,1780155160000,-241.44603907,0.0002789,30]
[423475553,1780155160000,-1050.81,0.00027977,30]
[423475532,1780155160000,-2408.73,0.00027816,2]
[423475558,1780155160000,-2871.22,0.00028,7]
[423475551,1780155160000,-2408.73,0.00027972,7]
[423475556,1780155160000,-160.0,0.00028,2]
[423475555,1780155160000,-576.8097954,0.00028,2]
[423475562,1780155160000,-215.58360558,0.00028,30]
[423475561,1780155160000,-300.0,0.00028,28]
[423475560,1780155160000,-500.0,0.00028,14]
[423475563,1780155160000,-600.0,0.00028,2]
[423475559,1780155160000,-1450.91,0.00028,7]
[423475546,1780155160000,-1050.81,0.00027916,2]
[423475557,1780155160000,-300.0,0.00028,2]
[423475565,1780155160000,-200.0,0.00028,7]
[423475564,1780155160000,-200.0,0.00028,20]
[423475643,1780155161000,-202.25494561,0.00028356,7]
[423475644,1780155161000,-205.55738274,0.00028356,7]
[423475630,1780155161000,-166.72035057,0.00028351,7]
[423475633,1780155161000,-187.75190103,0.00028351,7]
[423475650,1780155161000,-153.08446728,0.00028365,2]
[423475642,1780155161000,-197.14485582,0.00028356,7]
[423475627,1780155161000,-1172.31,0.00028346,7]
[423475634,1780155161000,-2140.64,0.00028355,2]
[423475641,1780155161000,-152.74726053,0.00028356,7]
[423475628,1780155161000,-874.0,0.00028346,7]
[423475629,1780155161000,-154.52712352,0.00028351,7]
[423475639,1780155161000,-177.01374539,0.00028356,7]
[423475635,1780155161000,-2140.17,0.00028355,2]
[423475636,1780155161000,-169.410686,0.00028355,7]
[423475646,1780155161000,-150.49798279,0.00028356,7]
[423475640,1780155161000,-207.45988435,0.00028356,7]
[423475638,1780155161000,-205.81059355,0.00028356,7]
[423475651,1780155161000,-172.25560381,0.00028365,2]
[423475656,1780155161000,-206.84783594,0.00028365,2]
[423475648,1780155161000,-158.76099832,0.00028356,7]
[423475645,1780155161000,-170.4118041,0.00028356,7]
[423475649,1780155161000,-200.0,0.00028361,2]
[423475654,1780155161000,-295.85371651,0.00028365,2]
[423475653,1780155161000,-192.58772674,0.00028365,2]
[423475657,1780155161000,-175.11381477,0.00028365,2]
[423475652,1780155161000,-164.38840113,0.00028365,2]
[423475647,1780155161000,-217.44533831,0.00028356,7]
[423475637,1780155161000,-152.28468194,0.00028356,7]
[423475621,1780155161000,-164.27217445,0.00028342,2]
[423475600,1780155161000,-1050.64,0.00028099,2]
[423475631,1780155161000,-162.03706712,0.00028351,7]
[423475597,1780155161000,-601.0477011,0.00028082,3]
[423475599,1780155161000,-200.0,0.00028088,2]
[423475598,1780155161000,-1000.0,0.00028082,3]
[423475603,1780155161000,-1050.86,0.0002813,7]
[423475601,1780155161000,-1050.81,0.00028099,2]
[423475602,1780155161000,-1050.77,0.0002813,7]
[423475604,1780155161000,-152.0,0.00028144,18]
[423475605,1780155161000,-800.0,0.00028152,60]
[423475608,1780155161000,-2140.64,0.00028194,7]
[423475607,1780155161000,-3016.86,0.00028194,7]
[423475610,1780155161000,-2140.17,0.00028194,7]
[423475609,1780155161000,-3016.87,0.00028194,7]
[423475614,1780155161000,-201.20503256,0.00028219,30]
[423475613,1780155161000,-170.25,0.00028219,14]
[423475617,1780155161000,-175.66070939,0.00028337,2]
[423475618,1780155161000,-186.43361922,0.00028342,2]
[423475606,1780155161000,-2900.0,0.00028152,60]
[423475611,1780155161000,-170.24,0.00028219,14]
[423475616,1780155161000,-351.21792606,0.00028311,30]
[423475612,1780155161000,-170.24,0.00028219,14]
[423475615,1780155161000,-2671.5,0.00028267,2]
[423475619,1780155161000,-177.35345015,0.00028342,2]
[423475620,1780155161000,-199.70068572,0.00028342,2]
[423475626,1780155161000,-1114.47,0.00028346,7]
[423475623,1780155161000,-1191.42,0.00028344,7]
[423475624,1780155161000,-512.89,0.00028344,7]
[423475622,1780155161000,-960.65,0.00028344,7]
[423475625,1780155161000,-1136.38,0.00028346,7]
[423475655,1780155161000,-190.67905003,0.00028365,2]
[423475632,1780155161000,-159.08763722,0.00028351,7]
[423475669,1780155161000,-165.33632605,0.00028368,2]
[423475691,1780155161000,-500.0,0.00028767,120]
[423475693,1780155161000,-500.0,0.00028767,120]
[423475694,1780155161000,-500.0,0.00028767,120]
[423475695,1780155161000,-500.0,0.00028767,120]